Cogmind - Beta 14 @@@ ROGUE MODE // 2024.10.01 @ 12:22:15 Player: Dazz Result: Destroyed by 0Y-LIW(R) with Subdweller Shrapnel Launcher Performance ------------- Evolutions (0) 0 Regions Visited (2) 400 Robots Destroyed (22) 110 Value Destroyed (528) 528 Prototype IDs (0) 0 Alien Tech Used (0) 0 Bonus (6) 6 TOTAL SCORE: 1044 Bonus ------- High Alert Combat Kills 6 Cogmind --------- Core Integrity 0/250 Matter 281/300 Energy 249/250 System Corruption 2% Temperature Cool (0) Movement Rolling (95) Ox1 Location -10/Subcaves Parts ------- > --- POWER (1) -------- Ion Engine > --- PROPULSION (2) --- Wheel Flight Unit > --- UTILITY (2) ------ Small Storage Unit Structural Scanner > --- WEAPON (2) ------- Mining Laser > --- INVENTORY (8) ---- Ion Engine Structural Scanner Targeting Computer Light Assault Rifle Grenade Launcher Mining Laser Peak State ------------ > --- POWER ------------ Ion Engine > --- PROPULSION ------- Wheel Wheel > --- UTILITY ---------- Small Storage Unit Seismic Detector > --- WEAPON ----------- Small Laser Grenade Launcher > --- INVENTORY -------- Ion Engine Targeting Computer [Rating: 7] Favorites ----------- Power Ion Engine Engine Ion Engine Propulsion Wheel Wheel Wheel Flight Unit Flight Unit Utility Small Storage Unit Device Structural Scanner Storage Small Storage Unit Weapon Grenade Launcher Energy Gun Small Laser Ballistic Gun Light Assault Rifle Launcher Grenade Launcher Special Weapon Mining Laser Build | -11 -10 -10 ------- Run | Yrd Mat Sub Slots Evolved . | . . . Power . | . . . Propulsion . | . . . Utility . | . . . Weapon . | . . . Parts Attached 14 | 5 9 . Power 2 | 1 1 . Engine 2 | 1 1 . Core . | . . . Reactor . | . . . Propulsion 5 | 2 3 . Treads . | . . . Leg . | . . . Wheel 4 | 2 2 . Hover . | . . . Flight 1 | . 1 . Utility 3 | 1 2 . Device 2 | . 2 . Storage 1 | 1 . . Processor . | . . . Hackware . | . . . Protection . | . . . Artifact . | . . . Weapon 4 | 1 3 . Energy Gun 1 | . 1 . Energy Cannon . | . . . Ballistic Gun 1 | 1 . . Ballistic Cannon . | . . . Launcher 1 | . 1 . Special Weapon 1 | . 1 . Impact Weapon . | . . . Slashing Weapon . | . . . Piercing Weapon . | . . . Special Melee Weapon . | . . . Unidentified Prototypes . | . . . Parts Lost 3 | . 2 1 Power . | . . . Propulsion 1 | . 1 . Utility . | . . . Weapon 2 | . 1 1 Highest Loss Streak 1 | . 1 1 To Critical Strikes . | . . . Average Slot Usage (%) 91 | . 89 100 Engine 14 | . 14 14 Wheel 22 | . 25 14 Flight 4 | . 1 14 Device 12 | . 11 14 Storage 14 | . 14 14 Energy Gun 5 | . 7 . Ballistic Gun 3 | . 4 . Launcher 10 | . 8 14 Special Weapon 4 | . . 14 Peak Build Rating 7 | 5 7 7 Average Rating 6 | 3 6 7 On Entrance 4 | . 5 7 Naked Turns . | . . . Heaviest Build 15 | 9 15 15 Greatest Support 20 | 20 20 10 Greatest Overweight (x) 1 | . 1 1 Average Overweight (x) . | . . 1 Largest Inventory Capacity 8 | 8 8 8 Average Capacity 7 | 6 8 8 Most Carried 8 | 3 8 6 Average Carried 4 | . 4 6 Final Capacity 8 | 8 8 8 Final Carried 6 | 1 6 6 Class Distribution -------------------- 100% | Mutant Dominant Class ---------------- Mutant | -10/Materials Mutant | -10/Subcaves Resources | -11 -10 -10 ----------- Run | Yrd Mat Sub Matter Collected 501 | 250 225 26 Remotely . | . . . Salvage Created 371 | . 341 30 Parts 35 | . 33 2 Haulers Intercepted . | . . . Recyclers Shooed . | . . . Parts Field Recycled . | . . . Retrieved Matter . | . . . Parts Self-Destructed 4 | . . 4 Prevented . | . . . Kills | -11 -10 -10 ------- Run | Yrd Mat Sub Combat Hostiles Destroyed 17 | . 15 2 Guns 6 | . 6 . AOE 11 | . 9 2 Classes Destroyed 6 | . 5 1 Worker 2 | . 2 . Tunneler 1 | . 1 . Watcher 2 | . 2 . Swarmer 7 | . 6 1 Grunt 9 | . 9 . Sentry 1 | . . 1 Best Kill Streak 7 | . 7 2 Combat Bots Only 6 | . 6 2 Max Kills in Single Turn 3 | . 3 1 Gunslinging . | . . . Exploded 3 | . 3 1 Melee . | . . . Uniques/NPCs Destroyed . | . . . Combat | -11 -10 -10 -------- Run | Yrd Mat Sub Hostile Shots Fired 66 | . 63 3 Missed 20 | . 20 . Damage Taken 688 | . 558 130 Core 259 | . 206 53 Absorbed by Shields . | . . . Regen/Repaired (Parts) 44 | . 44 . Core Remaining (%) 100 | 100 . . Volleys Fired 61 | . 53 8 Largest 2 | . 2 1 Hottest 100 | . 100 100 Shots Fired 72 | . 64 8 Gun 43 | . 43 . Cannon . | . . . Launcher 16 | . 13 3 Special 13 | . 8 5 Kinetic 22 | . 22 . Thermal 34 | . 29 5 Explosive 16 | . 13 3 Electromagnetic . | . . . Robot Hit Streak 9 | . 9 4 Robot Miss Streak 7 | . 7 . Penetration Max . | . . . Secondary Targets . | . . . Shots Hit Robots 35 | . 33 2 Core Hits 37 | . 33 4 Critical Kills . | . . . Critical Parts Destroyed . | . . . Critical Strikes . | . . . Melee Attacks . | . . . Impact . | . . . Slashing . | . . . Piercing . | . . . Sneak Attacks . | . . . Combat Hostiles . | . . . Follow-up Attacks . | . . . Damage Inflicted 1236 | . 1145 91 Guns 271 | . 271 . Cannons . | . . . Explosions 958 | . 867 91 Melee . | . . . Ramming 7 | . 7 . Kinetic 114 | . 114 . Thermal 254 | . 254 . Explosive 861 | . 770 91 Electromagnetic . | . . . Impact . | . . . Slashing . | . . . Piercing . | . . . Highest Corruption 2 | . 2 2 Average Corruption 1 | . 1 2 Corruption Purged . | . . . Corruption Blocked . | . . . Effects 11 | . 5 6 Message Errors 3 | . 2 1 Matter Fused 2 | . 1 1 Heat Flow Errors 3 | . 1 2 Energy Discharges 1 | . . 1 Data Loss (minor) 1 | . 1 . Alerts 1 | . . 1 Overload Shots . | . . . Overflow Damage 11 | . . 11 Projectiles . | . . . Explosions 11 | . . 11 Melee . | . . . Knockbacks . | . . . Impact . | . . . Kinetic . | . . . Secondary . | . . . Self-Inflicted Damage 70 | . 70 . Shots 4 | . 4 . Rammed 2 | . 2 . Targets Rammed 2 | . 2 . Kicked . | . . . Crushed . | . . . Highest Temperature 249 | . 249 217 Average Temperature 38 | . 30 109 Received Heat Transfer 237 | . 237 . Siege Activations . | . . . Robots Corrupted . | . . . Combat Hostiles . | . . . Parts Fried . | . . . Impact Corruptions . | . . . Robots Melted . | . . . Combat Hostiles . | . . . Parts Melted . | . . . Heat Transferred 400 | . 400 . Parts Sabotaged . | . . . Parts Stolen . | . . . Parts Stripped . | . . . Power Chain Reactions . | . . . Alert | -11 -10 -10 ------- Run | Yrd Mat Sub Peak Influence 464 | . 464 . Initial . | . . . Average 143 | . 150 . Maximum Alert Level 2 | . 2 . Low Security (%) 71 | 100 70 . Level 1 14 | . 15 . Level 2 13 | . 14 . Level 3 . | . . . Level 4 . | . . . Level 5 . | . . . High Security . | . . . Max Security . | . . . Squads Dispatched 2 | . 2 . Investigation 2 | . 2 . Extermination . | . . . Reinforcement . | . . . Assault . | . . . Garrison . | . . . Intercept . | . . . Searches Triggered . | . . . Construction Impeded . | . . . Haulers Reinforced . | . . . Active Scanning Responses . | . . . Cargo Convoy Interrupts . | . . . Stealth | -11 -10 -10 --------- Run | Yrd Mat Sub Distress Signals 1 | . 1 . Communications Jammed . | . . . Distress Signals . | . . . Times Spotted 23 | . 19 4 Peak Tracking Total 3 | . 3 2 Tactical Retreats . | . . . Traps | -11 -10 -10 ------- Run | Yrd Mat Sub Traps Triggered 1 | . . 1 Indirectly . | . . . Trap Hack Attempts . | . . . Triggered . | . . . Disarmed . | . . . Reprogrammed . | . . . Reused . | . . . Traps Extracted . | . . . Installed . | . . . Triggered . | . . . Machines | -11 -10 -10 ---------- Run | Yrd Mat Sub Machines Disabled 4 | . 4 . Max in Single Turn 2 | . 2 . Machines Repaired . | . . . Machines Dismantled . | . . . Machines Sabotaged . | . . . Overloaded Fab Kills . | . . . Hacking | -11 -10 -10 --------- Run | Yrd Mat Sub Machines Accessed 8 | . 8 . Terminals 5 | . 5 . Fabricators . | . . . Repair Stations 1 | . 1 . Recycling Units 2 | . 2 . Scanalyzers . | . . . Garrison Access . | . . . Total Hacks 19 | . 19 . Successful 11 | . 11 . Failed 8 | . 8 . Catastrophic . | . . . Database Lockouts . | . . . Manual 5 | . 5 . Terminals 12 | . 12 . Fabricators . | . . . Repair Stations 4 | . 4 . Recycling Units 3 | . 3 . Scanalyzers . | . . . Garrison Access . | . . . Terminal Hacks 4 | . 4 . Emergency Access Points 1 | . 1 . Terminal Index 1 | . 1 . Alert Level 1 | . 1 . Zone Layout 1 | . 1 . Fabricator Hacks . | . . . Repair Station Hacks 4 | . 4 . Scan Component 2 | . 2 . Repair 2 | . 2 . Recycling Unit Hacks 3 | . 3 . Report Inventory 2 | . 2 . Retrieve Components 1 | . 1 . Scanalyzer . | . . . Garrison Access Hacks . | . . . Unauthorized Hacks . | . . . Terminals . | . . . Fabricators . | . . . Repair Stations . | . . . Recycling Units . | . . . Scanalyzers . | . . . Garrison Access . | . . . Data Cores Recovered . | . . . Used . | . . . Hacking Detections 6 | . 6 . Full Trace Events 2 | . 2 . Feedback Events 1 | . 1 . Corruption 1 | . 1 . Feedback Blocked . | . . . Robot Schematics Acquired . | . . . Robots Built . | . . . Authchips . | . . . Time . | . . . Total Robot Build Rating . | . . . Part Schematics Acquired . | . . . Parts Built . | . . . Authchips . | . . . Time . | . . . Total Part Build Rating . | . . . Parts Repaired 2 | . 2 . Time 52 | . 52 . Parts Recycled . | . . . Recycled Matter . | . . . Retrieved Matter . | . . . Retrieved Components 3 | . 3 . Parts Scanalyzed . | . . . Part Schematics Acquired . | . . . Parts Damaged . | . . . Bothacking | -11 -10 -10 ------------ Run | Yrd Mat Sub Used RIF Installer . | . . . Robots Hacked . | . . . Non-combat . | . . . Combat . | . . . Robot Hacks Applied . | . . . Relay Couplers Released . | . . . Fabnet Peak Effective % . | . . . Robots Rewired . | . . . Allies Hacked . | . . . Hacks Repelled . | . . . Allies | -11 -10 -10 -------- Run | Yrd Mat Sub Total Allies . | . . . Largest Group . | . . . Highest-Rated Group . | . . . Highest-Rated Ally . | . . . Total Orders . | . . . Ally Attacks . | . . . Total Damage . | . . . Kills . | . . . Allies Corrupted . | . . . Allies Melted . | . . . Intel | -11 -10 -10 ------- Run | Yrd Mat Sub Robot Analysis Total . | . . . Derelict Logs Recovered . | . . . Drone Launches . | . . . Drone Recoveries . | . . . Exploration | -11 -10 -10 ------------- Run | Yrd Mat Sub Turns Passed 1067 | 34 758 275 Spaces Moved 903 | 30 624 249 Core 2 | 2 . . Treads . | . . . Legs . | . . . Wheels 901 | 28 624 249 Hover . | . . . Flight . | . . . Fastest Speed 50 | 50 80 95 Average Speed 85 | 78 81 95 Slowest Speed 95 | 80 95 95 Overloaded Moves . | . . . Propulsion Burnouts . | . . . Robots Hopped . | . . . Cave-ins Triggered . | . . . Exploration Rate (%) 37 | 4 90 19 Regions Visited 2 Branch Regions 1 Pre-discovered Areas 1 | . . 1 Known Exits Taken . | . . . Unknown Exits Taken 2 | 1 1 . Scrap Searched . | . . . Spaces Dug 4 | . 4 . Terrain Destroyed 127 | . 117 10 Melee . | . . . Projectile 4 | . 4 . AOE 123 | . 113 10 Terrain Rammed . | . . . Walls Destroyed . | . . . Machines Disabled . | . . . Actions | -11 -10 -10 --------- Run | Yrd Mat Sub Total 1105 | 40 797 268 Wait 101 | . 90 11 Move 901 | 29 623 249 Hop . | . . . Pick Up 20 | 6 14 . Fast Attach . | . . . Attach 14 | 5 9 . Detach 3 | . 3 . Swap . | . . . Drop 3 | . 3 . Fire 61 | . 53 8 Melee . | . . . Ram 2 | . 2 . Kick . | . . . Crush . | . . . Escape Stasis . | . . . Rewire . | . . . Trap . | . . . Miscellaneous . | . . . Route ------- -11/Scrapyard -10/Materials (discovered 5 exits: [*Mat x3] / [*Min] / [*Sub]) -10/Subcaves History --------- Turn | Location | Event 22 | -11/Scrapyard | Discovered new exit (range 16) 35 | -11/Scrapyard | Entered Materials 307 | -10/Materials | Build established: Mutant 367 | -10/Materials | Discovered new exit (range 14) 421 | -10/Materials | Repaired Wheel 446 | -10/Materials | Core integrity fell below 50% 451 | -10/Materials | Repaired Seismic Detector? 461 | -10/Materials | Discovered new exit (range 11) 555 | -10/Materials | Discovered new exit (range 11) 669 | -10/Materials | Discovered new exit (range 8) 696 | -10/Materials | Core integrity fell below 20% 700 | -10/Materials | Discovered new exit (range 12) 793 | -10/Materials | Entered Subcaves 796 | -10/Subcaves | A swath of the cavern ceiling suddenly collapsed 824 | -10/Subcaves | Learned location of Zion (-7) 824 | -10/Subcaves | Met a Zionite searching for "candidates" 1034 | -10/Subcaves | Shifting Twisted Machinery released Sub. Laser 1068 | -10/Subcaves | Destroyed by 0Y-LIW(R) with Subdweller Shrapnel Launcher Last Messages --------------- 00898_ System corrupted: Matter fused (-8). 00967_ System corrupted: Energy discharge (-55). 01003_ Destroyed Flight Unit. 01003_ S-10 Pest destroyed. 01007_ Y-45 Defender destroyed. 01008_ Subatomizers dissect the Heat Sink. 01010_ Triggered Piercing Trap. 01010_ Spikes shoot up from the floor. 01010_ Critical hit (Impale). 01014_ System corrupted: Heat flow error (+241). 01015_ Heat Sink fries itself beyond repair. 01017_ Acquired 26 matter. 01032_ The unstable cave ceiling collapses. Sub. Laser falls loose from the Twisted Machinery. 01039_ AMA8=T04K92BR#LC8VJXB:HV2V 01063_ System corrupted: IFF burst signal emitted. 01068_ Grenade Launcher destroyed. Map ----- +----------------------------------------------------+ | ?????????????????????????????????????????????????? | | ?????????????????????????????????????????????????? | | ?????????????????????????????????????????????????? | | ?????????????????????????????????????????????????? | | ?????????????????????????????????????????????????? | | ?????????????????????????????????????????????????? | | ?????????????????????????????????????????????????? | | ?????????????????????????????????????????????????? | | ?????????????????????????????????????????????????? | | ?????????????????????? ???????????????????????? | | ????????????????### ###????????????????????? | | ????????????????###" ###????????????????????? | | ????????????????## ; R ##????????????????????? | | ????????????????## ; ##????????????????????? | | ????????????? #### ##????????????????????? | | ?????????????? ### ##????????????????????? | | ?????????????? #????????????????????? | | ???????????????? ##????????????????????? | | ??????????#### ?## % #????????????????????? | | ?????????######?## ########??????????????? | | ?????###### ##?## ##########????????????? | | ???####### ##??## # # #####???????????? | | ??#### ## ##??### ###???????????? | | ??### ## ####### ???????????? | | ??## ^ ######## ## ??????????????????? | | ??## ??## #### @ ###??????????????????? | | ??## ### #### ######??????????????? | | ??## ###### #### ###########?????????? | | ?### ### #### ### ###########?????? | | #### ## ## ^ ##### ## ######?????? | | ### ## #### ##?????? | | ## ^ #### ###?????? | | # ##### ##??????? | | ##### ####### ### ###??????? | | ####### ######## #### ####??????? | | ###?### ####### #### ####???????? | | ###### ## ### ######### ###????????? | | ####### # ###### ## ##????????? | | ###### ## ## ##????????? | | ??## ### ## ????????? | | ?### # ## ????????? | | ?## ## ### ###" ????????? | | ## #### ### ## #### ##?????? | | #### #" ####### ##?????? | | #### #### "" ###?????? ##?????? | | #### ####### [""" ###?????? #?????? | | ??# ? ######""" ##???????? ?????? | | ? ???## ?????# ##" "" ###??????????????? | | ???????### ??????? "" "" ##??????????????? | | ??????? #### ??????"" "" ##??????????????? | +----------------------------------------------------+ Best States ------------- Heat Dissipation 25 Energy Generation 10 Energy Capacity 250 Matter Stores 300 Matter Capacity 300 Sight Range 16 Terrain Scan Density 10 Evasion (%) 44 Item Schematics ----------------- None Robot Schematics ------------------ None Fabricated ------------ Nothing Alien Tech Used ----------------- None Achievements -------------- None Challenges ------------ None Game ------ Seed ExpertEnergyBooster Manual? 0 Play Time 00:17:35 Cumulative 7.4 hours Start 2024.10.01 @ 12:04:12 End 2024.10.01 @ 12:22:15 Sessions 1 Manual Loads 0 Difficulty Rogue Special Mode None Game No. 22 Rogue 22 Adventurer 0 Explorer 0 Win Type - Total 0 Types 0/0/0/0/0/0/0/0/0 Lore% 2 Gallery% 8 Achievement% 10 Wizard Run 0 Options --------- Layout 1 ASCII 0 Keyboard 1 Movement Numpad Keybinds 0 Fullscreen 2 Font 32/SmallcapsGlow Map View 50x35 Zoom Use 0% Tactical HUD 1 Map Filters NONE Filters NONE Steam 1 RUN: 3b1a6967-66a6-41ec-a8e8-a378f812aca0